[Event "Late-Titled-Tuesday-Blitz-March-26-2024"]
[Site "Chess.com"]
[Date "2024.03.26"]
[Round "10"]
[White "AndresDelgado77"]
[Black "AccioChess"]
[Result "1-0"]
[WhiteElo "2337"]
[BlackElo "2475"]
[TimeControl "180+1"]
[EndTime "15:52:31 PDT"]
[Termination "AndresDelgado77 won by resignation"]

1. e4 {[%clk 0:02:59]} 1... c5 {[%clk 0:03:00.1]} 2. Nf3 {[%clk 0:02:58]} 2...
e6 {[%clk 0:03:00.2]} 3. b4 {[%clk 0:02:57.2]} 3... cxb4 {[%clk 0:02:59.7]} 4.
d4 {[%clk 0:02:54.8]} 4... d5 {[%clk 0:02:59.9]} 5. e5 {[%clk 0:02:54.8]} 5...
Nc6 {[%clk 0:02:59.7]} 6. a3 {[%clk 0:02:54.6]} 6... bxa3 {[%clk 0:02:59.6]} 7.
c3 {[%clk 0:02:49.8]} 7... Nh6 {[%clk 0:02:57.7]} 8. Bd3 {[%clk 0:02:44.6]} 8...
Nf5 {[%clk 0:02:57.3]} 9. h4 {[%clk 0:02:34.4]} 9... Be7 {[%clk 0:02:52.6]} 10.
h5 {[%clk 0:02:28]} 10... h6 {[%clk 0:02:48.8]} 11. Nxa3 {[%clk 0:02:20.3]}
11... Nh4 {[%clk 0:02:40.2]} 12. Nxh4 {[%clk 0:02:16.2]} 12... Bxh4 {[%clk
0:02:41.1]} 13. Qg4 {[%clk 0:02:14.4]} 13... Bg5 {[%clk 0:02:40.1]} 14. f4
{[%clk 0:02:09.5]} 14... Be7 {[%clk 0:02:31.7]} 15. Qxg7 {[%clk 0:02:07.8]}
15... Kd7 {[%clk 0:02:27.1]} 16. f5 {[%clk 0:01:54.5]} 16... Qa5 {[%clk
0:02:15.3]} 17. Nc2 {[%clk 0:01:00]} 17... Qxc3+ {[%clk 0:02:12.8]} 18. Ke2
{[%clk 0:01:00]} 18... Nxd4+ {[%clk 0:01:52.4]} 19. Nxd4 {[%clk 0:00:59.3]}
19... Qxd4 {[%clk 0:01:53.3]} 20. Be3 {[%clk 0:00:28.6]} 20... Qb2+ {[%clk
0:01:51.6]} 21. Kf3 {[%clk 0:00:28.6]} 21... b6 {[%clk 0:01:37.9]} 22. Rhb1
{[%clk 0:00:24.8]} 22... Rg8 {[%clk 0:01:30.2]} 23. Qxg8 {[%clk 0:00:18.7]}
23... Qxe5 {[%clk 0:01:29.5]} 24. Bb5+ {[%clk 0:00:15.9]} 24... Kc7 {[%clk
0:01:28.9]} 25. Bf4 {[%clk 0:00:16]} 1-0

[Event "Late-Titled-Tuesday-Blitz-March-26-2024"]
[Site "Chess.com"]
[Date "2024.03.26"]
[Round "10"]
[White "jstopa4"]
[Black "Sanyura"]
[Result "0-1"]
[WhiteElo "2717"]
[BlackElo "2606"]
[TimeControl "180+1"]
[EndTime "15:52:53 PDT"]
[Termination "Sanyura won by resignation"]

1. d4 {[%clk 0:02:58.2]} 1... Nf6 {[%clk 0:02:57]} 2. Nf3 {[%clk 0:02:55.2]}
2... g6 {[%clk 0:02:56.6]} 3. Nc3 {[%clk 0:02:53.9]} 3... Bg7 {[%clk 0:02:56.2]}
4. e4 {[%clk 0:02:53.9]} 4... d6 {[%clk 0:02:56.7]} 5. Be2 {[%clk 0:02:53.2]}
5... O-O {[%clk 0:02:56.9]} 6. O-O {[%clk 0:02:53.5]} 6... e5 {[%clk 0:02:56.4]}
7. Re1 {[%clk 0:02:48.3]} 7... Nc6 {[%clk 0:02:56.3]} 8. d5 {[%clk 0:02:44]}
8... Ne7 {[%clk 0:02:56.2]} 9. a4 {[%clk 0:02:42.2]} 9... Nh5 {[%clk 0:02:56.3]}
10. g3 {[%clk 0:02:34.6]} 10... f5 {[%clk 0:02:50.3]} 11. exf5 {[%clk 0:02:22]}
11... Bxf5 {[%clk 0:02:47.6]} 12. Ng5 {[%clk 0:02:19.7]} 12... Nf6 {[%clk
0:02:47.5]} 13. a5 {[%clk 0:02:14.5]} 13... Qd7 {[%clk 0:02:41.3]} 14. a6 {[%clk
0:02:10.6]} 14... bxa6 {[%clk 0:02:37.6]} 15. Rxa6 {[%clk 0:02:05.5]} 15... h6
{[%clk 0:02:36.2]} 16. Nf3 {[%clk 0:01:51.7]} 16... Ne4 {[%clk 0:02:29.3]} 17.
Bd2 {[%clk 0:01:34.7]} 17... Nxc3 {[%clk 0:02:17.4]} 18. Bxc3 {[%clk 0:01:34.3]}
18... Be4 {[%clk 0:02:04.9]} 19. Nh4 {[%clk 0:01:28.7]} 19... g5 {[%clk
0:01:48.4]} 20. Bc4 {[%clk 0:01:17.2]} 20... Bh7 {[%clk 0:01:40]} 21. Ng2 {[%clk
0:01:17.1]} 21... Rf7 {[%clk 0:01:36.6]} 22. Bd3 {[%clk 0:01:13.3]} 22... Raf8
{[%clk 0:01:35.3]} 23. Bxh7+ {[%clk 0:01:13]} 23... Kxh7 {[%clk 0:01:36.2]} 24.
Re2 {[%clk 0:01:09.5]} 24... Qh3 {[%clk 0:01:32.2]} 25. Rxa7 {[%clk 0:01:06.4]}
25... Nf5 {[%clk 0:01:20.2]} 26. Qd3 {[%clk 0:01:05.3]} 26... Kg8 {[%clk
0:01:19.9]} 27. Ra1 {[%clk 0:00:59.3]} 27... h5 {[%clk 0:01:17.6]} 28. Rf1
{[%clk 0:00:51.1]} 28... Nh6 {[%clk 0:01:17.2]} 29. Ne3 {[%clk 0:00:42.3]} 29...
Rf3 {[%clk 0:01:16.7]} 30. Qg6 {[%clk 0:00:36.5]} 30... Rxe3 {[%clk 0:01:16.1]}
31. Rxe3 {[%clk 0:00:32.9]} 31... Ng4 {[%clk 0:01:16.3]} 32. Qe6+ {[%clk
0:00:29.4]} 32... Kh8 {[%clk 0:01:16.5]} 0-1

[Event "Late-Titled-Tuesday-Blitz-March-26-2024"]
[Site "Chess.com"]
[Date "2024.03.26"]
[Round "10"]
[White "Bryanl106"]
[Black "Nf3c5"]
[Result "1-0"]
[WhiteElo "2678"]
[BlackElo "2562"]
[TimeControl "180+1"]
[EndTime "15:52:58 PDT"]
[Termination "Bryanl106 won on time"]

1. e4 {[%clk 0:03:00.9]} 1... c5 {[%clk 0:02:55.9]} 2. Nf3 {[%clk 0:03:00.5]}
2... Nc6 {[%clk 0:02:56.4]} 3. d4 {[%clk 0:03:00.7]} 3... cxd4 {[%clk
0:02:56.5]} 4. Nxd4 {[%clk 0:03:01.6]} 4... e5 {[%clk 0:02:55.9]} 5. Nb5 {[%clk
0:03:01.6]} 5... d6 {[%clk 0:02:55.9]} 6. N1c3 {[%clk 0:03:01.7]} 6... a6 {[%clk
0:02:55.4]} 7. Na3 {[%clk 0:03:02.3]} 7... Be6 {[%clk 0:02:55.2]} 8. Nc4 {[%clk
0:03:02.3]} 8... Rb8 {[%clk 0:02:53.8]} 9. g3 {[%clk 0:02:55.2]} 9... g6 {[%clk
0:02:20.5]} 10. Ne3 {[%clk 0:02:53.7]} 10... Bg7 {[%clk 0:02:08.6]} 11. Bg2
{[%clk 0:02:52.1]} 11... Nf6 {[%clk 0:02:07.3]} 12. O-O {[%clk 0:02:51.2]} 12...
O-O {[%clk 0:02:05.8]} 13. Ncd5 {[%clk 0:02:49.4]} 13... Ne7 {[%clk 0:01:43.4]}
14. c4 {[%clk 0:02:46.1]} 14... Nc6 {[%clk 0:01:26.7]} 15. b3 {[%clk 0:02:42.2]}
15... Nd4 {[%clk 0:01:25.5]} 16. Bb2 {[%clk 0:02:38.2]} 16... Nxd5 {[%clk
0:01:25.1]} 17. cxd5 {[%clk 0:02:35.9]} 17... Bd7 {[%clk 0:01:25.3]} 18. Rc1
{[%clk 0:02:35.1]} 18... Qa5 {[%clk 0:01:23.2]} 19. Nc4 {[%clk 0:02:26.7]} 19...
Qd8 {[%clk 0:00:40.2]} 20. Nxd6 {[%clk 0:02:23.3]} 20... b5 {[%clk 0:00:40.1]}
21. Ba3 {[%clk 0:02:12.2]} 21... Qa5 {[%clk 0:00:33]} 22. Bc5 {[%clk 0:02:10.5]}
22... Qxa2 {[%clk 0:00:29.1]} 23. Bxd4 {[%clk 0:02:06.1]} 23... exd4 {[%clk
0:00:28.7]} 24. Ra1 {[%clk 0:02:06.2]} 24... Qb2 {[%clk 0:00:28.7]} 25. Rxa6
{[%clk 0:02:06.3]} 25... Ra8 {[%clk 0:00:22.1]} 26. Qa1 {[%clk 0:01:56.7]} 26...
Qxa1 {[%clk 0:00:14.4]} 27. Rfxa1 {[%clk 0:01:57.6]} 27... Rxa6 {[%clk
0:00:14.5]} 28. Rxa6 {[%clk 0:01:58.5]} 28... d3 {[%clk 0:00:15.1]} 29. Bf3
{[%clk 0:01:58.2]} 29... Be5 {[%clk 0:00:12.6]} 30. Ra7 {[%clk 0:01:52.1]} 30...
Rd8 {[%clk 0:00:09.8]} 31. Nb7 {[%clk 0:01:35.3]} 31... Rc8 {[%clk 0:00:09.5]}
32. Na5 {[%clk 0:01:31.3]} 32... Rc1+ {[%clk 0:00:05.7]} 33. Kg2 {[%clk
0:01:31.2]} 33... Bc8 {[%clk 0:00:03.6]} 34. Nc6 {[%clk 0:01:30.5]} 1-0

[Event "Late-Titled-Tuesday-Blitz-March-26-2024"]
[Site "Chess.com"]
[Date "2024.03.26"]
[Round "10"]
[White "Payyappat"]
[Black "omeed_87"]
[Result "0-1"]
[WhiteElo "2517"]
[BlackElo "2444"]
[TimeControl "180+1"]
[EndTime "15:53:12 PDT"]
[Termination "omeed_87 won by resignation"]

1. e4 {[%clk 0:03:00.9]} 1... e6 {[%clk 0:02:59.9]} 2. d4 {[%clk 0:03:01]} 2...
d5 {[%clk 0:02:59.9]} 3. Nc3 {[%clk 0:03:01.9]} 3... Bb4 {[%clk 0:02:58.2]} 4.
e5 {[%clk 0:03:01.6]} 4... Bxc3+ {[%clk 0:02:54.9]} 5. bxc3 {[%clk 0:03:02.5]}
5... c5 {[%clk 0:02:54.5]} 6. Qg4 {[%clk 0:02:54.6]} 6... Kf8 {[%clk 0:02:44.2]}
7. h4 {[%clk 0:02:43.7]} 7... Nc6 {[%clk 0:02:42.4]} 8. h5 {[%clk 0:02:39.2]}
8... h6 {[%clk 0:02:37.5]} 9. Nf3 {[%clk 0:02:33.3]} 9... Nge7 {[%clk
0:02:37.2]} 10. Nh4 {[%clk 0:02:29.7]} 10... Nf5 {[%clk 0:02:31.4]} 11. Ba3
{[%clk 0:02:22.8]} 11... Kg8 {[%clk 0:02:17.9]} 12. Bxc5 {[%clk 0:02:13]} 12...
Qa5 {[%clk 0:02:17.9]} 13. Rh3 {[%clk 0:02:02.2]} 13... b6 {[%clk 0:02:06]} 14.
Bd6 {[%clk 0:01:42.7]} 14... Ncxd4 {[%clk 0:01:57.7]} 15. Nxf5 {[%clk
0:01:25.9]} 15... Nxf5 {[%clk 0:01:53.1]} 16. Bb4 {[%clk 0:01:22.7]} 16... Qa4
{[%clk 0:01:49.8]} 17. Bd3 {[%clk 0:01:20.6]} 17... a5 {[%clk 0:01:42]} 18. Bxf5
{[%clk 0:00:16.4]} 18... exf5 {[%clk 0:01:35.1]} 19. Qd4 {[%clk 0:00:15.8]}
19... axb4 {[%clk 0:01:10.8]} 20. e6 {[%clk 0:00:15.3]} 20... Bxe6 {[%clk
0:00:42.9]} 21. Rg3 {[%clk 0:00:13.6]} 21... Rh7 {[%clk 0:00:42.6]} 0-1

[Event "Late-Titled-Tuesday-Blitz-March-26-2024"]
[Site "Chess.com"]
[Date "2024.03.26"]
[Round "10"]
[White "RianKapriaga"]
[Black "andrzej"]
[Result "1-0"]
[WhiteElo "2361"]
[BlackElo "2495"]
[TimeControl "180+1"]
[EndTime "15:53:13 PDT"]
[Termination "RianKapriaga won by checkmate"]

1. d4 {[%clk 0:03:00.9]} 1... d5 {[%clk 0:02:59.5]} 2. Nf3 {[%clk 0:02:59.9]}
2... Nf6 {[%clk 0:02:59.4]} 3. Bf4 {[%clk 0:02:59.6]} 3... c5 {[%clk 0:02:59.2]}
4. e3 {[%clk 0:02:59.8]} 4... Nc6 {[%clk 0:02:59.7]} 5. Nbd2 {[%clk 0:03:00.1]}
5... cxd4 {[%clk 0:02:59.5]} 6. exd4 {[%clk 0:02:59.4]} 6... Qb6 {[%clk
0:03:00.1]} 7. Nb3 {[%clk 0:02:55.9]} 7... Bf5 {[%clk 0:03:00.3]} 8. c3 {[%clk
0:02:54.2]} 8... e6 {[%clk 0:02:59.9]} 9. Bd3 {[%clk 0:02:49.7]} 9... Bxd3
{[%clk 0:02:59.6]} 10. Qxd3 {[%clk 0:02:50.6]} 10... a5 {[%clk 0:02:59.9]} 11.
Rb1 {[%clk 0:02:45.3]} 11... a4 {[%clk 0:02:59.1]} 12. Nbd2 {[%clk 0:02:44.7]}
12... Be7 {[%clk 0:02:53.1]} 13. a3 {[%clk 0:02:43.2]} 13... O-O {[%clk
0:02:52.6]} 14. O-O {[%clk 0:02:43.2]} 14... Na5 {[%clk 0:02:51.2]} 15. Rfe1
{[%clk 0:02:42]} 15... Rfc8 {[%clk 0:02:48.8]} 16. h3 {[%clk 0:02:40.3]} 16...
Ne8 {[%clk 0:02:40.6]} 17. Re3 {[%clk 0:02:36.2]} 17... g6 {[%clk 0:02:33.3]}
18. h4 {[%clk 0:02:32.6]} 18... Ng7 {[%clk 0:02:29.6]} 19. Bg5 {[%clk
0:02:22.8]} 19... Bd6 {[%clk 0:02:09.9]} 20. Ne5 {[%clk 0:02:18.9]} 20... Nf5
{[%clk 0:01:54.5]} 21. Rh3 {[%clk 0:02:15.8]} 21... Bxe5 {[%clk 0:01:45.5]} 22.
dxe5 {[%clk 0:02:16.7]} 22... h5 {[%clk 0:01:15.5]} 23. Bf6 {[%clk 0:02:14.9]}
23... d4 {[%clk 0:01:01.4]} 24. Ne4 {[%clk 0:01:49.4]} 24... Nc4 {[%clk
0:00:49.3]} 25. Ng3 {[%clk 0:01:41.5]} 25... Qc5 {[%clk 0:00:39.1]} 26. Nxf5
{[%clk 0:01:38.3]} 26... exf5 {[%clk 0:00:39.4]} 27. cxd4 {[%clk 0:01:35.9]}
27... Qd5 {[%clk 0:00:39.1]} 28. Rg3 {[%clk 0:01:31.5]} 28... Kh7 {[%clk
0:00:37.1]} 29. Rg5 {[%clk 0:01:28.9]} 29... Qe4 {[%clk 0:00:24.2]} 30. Qd1
{[%clk 0:01:19]} 30... Ra5 {[%clk 0:00:17.8]} 31. Rxh5+ {[%clk 0:01:12.6]} 31...
gxh5 {[%clk 0:00:17]} 32. Qxh5+ {[%clk 0:01:10.9]} 32... Kg8 {[%clk 0:00:17.5]}
33. Qh8# {[%clk 0:01:10.4]} 1-0

[Event "Late-Titled-Tuesday-Blitz-March-26-2024"]
[Site "Chess.com"]
[Date "2024.03.26"]
[Round "10"]
[White "ccccvhhhj"]
[Black "simaopdias"]
[Result "0-1"]
[WhiteElo "2418"]
[BlackElo "2297"]
[TimeControl "180+1"]
[EndTime "15:53:14 PDT"]
[Termination "simaopdias won by checkmate"]

1. e4 {[%clk 0:03:00.9]} 1... c5 {[%clk 0:02:59.6]} 2. Nf3 {[%clk 0:03:00.3]}
2... g6 {[%clk 0:03:00.3]} 3. d4 {[%clk 0:02:59.4]} 3... cxd4 {[%clk 0:03:01.2]}
4. Nxd4 {[%clk 0:03:00.3]} 4... Nc6 {[%clk 0:03:01.5]} 5. Nc3 {[%clk 0:03:00.8]}
5... Bg7 {[%clk 0:03:02.1]} 6. Be3 {[%clk 0:03:01.6]} 6... Nf6 {[%clk
0:03:02.7]} 7. Nxc6 {[%clk 0:03:02.2]} 7... bxc6 {[%clk 0:03:02.7]} 8. e5 {[%clk
0:03:03]} 8... Nd5 {[%clk 0:03:02.4]} 9. Nxd5 {[%clk 0:03:03.2]} 9... cxd5
{[%clk 0:03:03.3]} 10. Qxd5 {[%clk 0:03:03.8]} 10... Rb8 {[%clk 0:03:03.1]} 11.
O-O-O {[%clk 0:03:04.5]} 11... O-O {[%clk 0:03:02.5]} 12. f4 {[%clk 0:03:05]}
12... Bb7 {[%clk 0:02:58.8]} 13. Qd2 {[%clk 0:03:03.7]} 13... Bc6 {[%clk
0:02:54.4]} 14. Bd4 {[%clk 0:03:03.7]} 14... Qc7 {[%clk 0:02:50.6]} 15. Bc4
{[%clk 0:03:02]} 15... Qb7 {[%clk 0:02:50.7]} 16. Bb3 {[%clk 0:03:02.1]} 16...
Bxg2 {[%clk 0:02:47.5]} 17. Rhg1 {[%clk 0:03:01.9]} 17... Bf3 {[%clk 0:02:47.4]}
18. Rde1 {[%clk 0:03:02.3]} 18... Bd5 {[%clk 0:02:47.7]} 19. Kb1 {[%clk
0:03:00.9]} 19... Bxb3 {[%clk 0:02:42.4]} 20. axb3 {[%clk 0:03:01.1]} 20... Rfd8
{[%clk 0:02:40.2]} 21. h4 {[%clk 0:03:00.2]} 21... d6 {[%clk 0:02:35.2]} 22. e6
{[%clk 0:02:57.6]} 22... fxe6 {[%clk 0:02:27.4]} 23. Rxe6 {[%clk 0:02:55.3]}
23... Rd7 {[%clk 0:02:20.3]} 24. h5 {[%clk 0:02:54.5]} 24... Qd5 {[%clk
0:02:17.3]} 25. hxg6 {[%clk 0:02:48.7]} 25... h6 {[%clk 0:02:12.7]} 26. Rge1
{[%clk 0:02:33.7]} 26... Qxd4 {[%clk 0:02:07.8]} 27. Qc1 {[%clk 0:02:29.3]}
27... Bf6 {[%clk 0:01:52.5]} 28. f5 {[%clk 0:02:25.5]} 28... Kg7 {[%clk
0:01:50.4]} 29. R6e4 {[%clk 0:02:24.6]} 29... Qf2 {[%clk 0:01:47.9]} 30. R4e2
{[%clk 0:02:24.3]} 30... Qg3 {[%clk 0:01:45.1]} 31. Rh1 {[%clk 0:02:22.1]} 31...
Qg5 {[%clk 0:01:44.1]} 32. Qf1 {[%clk 0:02:18.4]} 32... Rc7 {[%clk 0:01:36.2]}
33. Reh2 {[%clk 0:02:17.7]} 33... Rbc8 {[%clk 0:01:30.8]} 34. Rxh6 {[%clk
0:02:14.8]} 34... Rxc2 {[%clk 0:01:26.4]} 35. Rh7+ {[%clk 0:02:14.7]} 35... Kg8
{[%clk 0:01:26.7]} 36. Rh8+ {[%clk 0:01:43.1]} 36... Bxh8 {[%clk 0:01:22.9]} 37.
Rxh8+ {[%clk 0:01:44]} 37... Kxh8 {[%clk 0:01:05.8]} 38. Qh3+ {[%clk 0:01:43]}
38... Kg7 {[%clk 0:01:06.4]} 39. Qh7+ {[%clk 0:01:42.9]} 39... Kf6 {[%clk
0:01:06.9]} 40. Qf7+ {[%clk 0:01:42.8]} 40... Ke5 {[%clk 0:01:07.3]} 41. Qe6+
{[%clk 0:01:40.2]} 41... Kf4 {[%clk 0:01:04]} 42. Qd5 {[%clk 0:01:11.4]} 42...
Qxf5 {[%clk 0:00:59.7]} 43. Qd4+ {[%clk 0:01:11.3]} 43... Kg5 {[%clk 0:00:57.8]}
44. Qe3+ {[%clk 0:01:07.3]} 44... Kxg6 {[%clk 0:00:57.7]} 45. Qg3+ {[%clk
0:01:06.8]} 45... Kf7 {[%clk 0:00:56.1]} 46. Ka2 {[%clk 0:01:05.2]} 46... Qa5+
{[%clk 0:00:54.3]} 47. Kb1 {[%clk 0:01:05]} 47... Rc1# {[%clk 0:00:54.7]} 0-1

[Event "Late-Titled-Tuesday-Blitz-March-26-2024"]
[Site "Chess.com"]
[Date "2024.03.26"]
[Round "10"]
[White "jinbojinbo"]
[Black "MathiasWomacka"]
[Result "1-0"]
[WhiteElo "2639"]
[BlackElo "2477"]
[TimeControl "180+1"]
[EndTime "15:53:18 PDT"]
[Termination "jinbojinbo won on time"]

1. c4 {[%clk 0:03:00.9]} 1... c5 {[%clk 0:02:28]} 2. Nc3 {[%clk 0:03:00]} 2...
Nf6 {[%clk 0:02:26]} 3. Nf3 {[%clk 0:02:53.1]} 3... e6 {[%clk 0:02:24.2]} 4. d4
{[%clk 0:02:52.2]} 4... cxd4 {[%clk 0:02:23.5]} 5. Nxd4 {[%clk 0:02:53.1]} 5...
Bb4 {[%clk 0:02:21.7]} 6. Bd2 {[%clk 0:02:51.1]} 6... Nc6 {[%clk 0:02:20.3]} 7.
Nc2 {[%clk 0:02:50.7]} 7... Bc5 {[%clk 0:02:19.6]} 8. e3 {[%clk 0:02:50.2]} 8...
O-O {[%clk 0:02:18.6]} 9. Be2 {[%clk 0:02:49.5]} 9... b6 {[%clk 0:02:18.2]} 10.
O-O {[%clk 0:02:49.1]} 10... Bb7 {[%clk 0:02:18.7]} 11. a3 {[%clk 0:02:44.4]}
11... Rc8 {[%clk 0:02:16.9]} 12. Bf3 {[%clk 0:02:40.2]} 12... Qc7 {[%clk
0:02:12.3]} 13. Nb5 {[%clk 0:02:29.5]} 13... Qb8 {[%clk 0:02:11.4]} 14. Bc3
{[%clk 0:02:29.6]} 14... a6 {[%clk 0:01:53.4]} 15. Nbd4 {[%clk 0:02:28]} 15...
Ne5 {[%clk 0:01:50.4]} 16. Bxb7 {[%clk 0:02:26.3]} 16... Qxb7 {[%clk 0:01:51.3]}
17. Nxe6 {[%clk 0:02:24.2]} 17... dxe6 {[%clk 0:01:48.1]} 18. Bxe5 {[%clk
0:02:24.2]} 18... Be7 {[%clk 0:01:33.7]} 19. Qe2 {[%clk 0:02:19.4]} 19... Qe4
{[%clk 0:01:23.3]} 20. Bd4 {[%clk 0:02:18]} 20... e5 {[%clk 0:01:21.9]} 21. f3
{[%clk 0:02:11.9]} 21... Qf5 {[%clk 0:01:15.9]} 22. Bxb6 {[%clk 0:02:06.1]}
22... Rb8 {[%clk 0:01:15.1]} 23. c5 {[%clk 0:02:03]} 23... e4 {[%clk 0:01:03.7]}
24. Nd4 {[%clk 0:01:55.8]} 24... Qg5 {[%clk 0:00:52.8]} 25. f4 {[%clk 0:01:55]}
25... Qd5 {[%clk 0:00:33.4]} 26. b4 {[%clk 0:01:54.1]} 26... Nd7 {[%clk
0:00:26.2]} 27. Qxa6 {[%clk 0:01:51.8]} 27... Nxb6 {[%clk 0:00:21.2]} 28. cxb6
{[%clk 0:01:52.7]} 28... Bf6 {[%clk 0:00:17.5]} 29. Rfd1 {[%clk 0:01:49.8]}
29... Qd6 {[%clk 0:00:16.6]} 30. Rac1 {[%clk 0:01:43.3]} 30... Rxb6 {[%clk
0:00:11.8]} 31. Qe2 {[%clk 0:01:40.2]} 31... Ra8 {[%clk 0:00:09.9]} 32. Qc2
{[%clk 0:01:30.7]} 32... g6 {[%clk 0:00:06.5]} 33. Qxe4 {[%clk 0:01:28.9]} 33...
Rxa3 {[%clk 0:00:05.9]} 34. Rc8+ {[%clk 0:01:28.3]} 34... Kg7 {[%clk 0:00:05.3]}
35. Qe8 {[%clk 0:01:20.2]} 1-0

[Event "Late-Titled-Tuesday-Blitz-March-26-2024"]
[Site "Chess.com"]
[Date "2024.03.26"]
[Round "10"]
[White "stollenmonster"]
[Black "TokChess"]
[Result "1-0"]
[WhiteElo "2845"]
[BlackElo "2605"]
[TimeControl "180+1"]
[EndTime "15:53:19 PDT"]
[Termination "stollenmonster won by resignation"]

1. e4 {[%clk 0:03:00.9]} 1... c5 {[%clk 0:03:00.7]} 2. Nf3 {[%clk 0:03:00.6]}
2... e6 {[%clk 0:03:01.2]} 3. Be2 {[%clk 0:03:00.3]} 3... Nc6 {[%clk 0:03:01]}
4. c4 {[%clk 0:03:00.9]} 4... d6 {[%clk 0:02:59.9]} 5. d4 {[%clk 0:03:00.5]}
5... cxd4 {[%clk 0:02:59.9]} 6. Nxd4 {[%clk 0:03:01.4]} 6... Nf6 {[%clk
0:03:00]} 7. Nc3 {[%clk 0:03:01.4]} 7... Be7 {[%clk 0:03:00.4]} 8. O-O {[%clk
0:03:01]} 8... O-O {[%clk 0:03:00.6]} 9. Be3 {[%clk 0:03:01.7]} 9... Bd7 {[%clk
0:03:00.5]} 10. Rc1 {[%clk 0:03:02.2]} 10... Nxd4 {[%clk 0:03:00.3]} 11. Qxd4
{[%clk 0:03:01.4]} 11... Bc6 {[%clk 0:03:01.2]} 12. Rfd1 {[%clk 0:03:00.6]}
12... a6 {[%clk 0:02:45.9]} 13. h3 {[%clk 0:02:57.4]} 13... Qa5 {[%clk
0:02:37.9]} 14. Qd2 {[%clk 0:02:48.2]} 14... Kh8 {[%clk 0:02:12.1]} 15. Bf3
{[%clk 0:02:44.9]} 15... Rfd8 {[%clk 0:02:09.5]} 16. a3 {[%clk 0:02:38]} 16...
Rac8 {[%clk 0:02:03.6]} 17. b4 {[%clk 0:02:27.2]} 17... Qxa3 {[%clk 0:01:42.8]}
18. Bb6 {[%clk 0:02:27.5]} 18... Qxb4 {[%clk 0:01:28.9]} 19. Bxd8 {[%clk
0:02:27.1]} 19... Rxd8 {[%clk 0:01:29.7]} 20. Qe2 {[%clk 0:02:13.2]} 20... Qc5
{[%clk 0:01:26.7]} 21. Nd5 {[%clk 0:02:07.7]} 21... Re8 {[%clk 0:01:16.7]} 22.
Nxe7 {[%clk 0:02:06.2]} 22... Rxe7 {[%clk 0:01:17.6]} 23. e5 {[%clk 0:02:00.9]}
23... dxe5 {[%clk 0:00:55.6]} 24. Bxc6 {[%clk 0:01:56.8]} 24... Qxc6 {[%clk
0:00:54.8]} 25. Rd8+ {[%clk 0:01:54.8]} 25... Re8 {[%clk 0:00:53.9]} 26. Rxe8+
{[%clk 0:01:54.7]} 26... Nxe8 {[%clk 0:00:54.5]} 27. Qxe5 {[%clk 0:01:55.1]}
27... h6 {[%clk 0:00:46.8]} 28. Rd1 {[%clk 0:01:50]} 28... Nf6 {[%clk
0:00:42.8]} 29. Rd8+ {[%clk 0:01:47.2]} 29... Kh7 {[%clk 0:00:42.3]} 30. Qd4
{[%clk 0:01:47.2]} 30... Qc7 {[%clk 0:00:33.1]} 31. Rf8 {[%clk 0:01:42]} 31...
e5 {[%clk 0:00:13.9]} 32. Qd3+ {[%clk 0:01:36.4]} 32... e4 {[%clk 0:00:13.6]}
33. Qd4 {[%clk 0:01:35.1]} 33... Kg6 {[%clk 0:00:10.1]} 34. c5 {[%clk
0:01:27.3]} 34... Qc6 {[%clk 0:00:08.2]} 35. Rd8 {[%clk 0:01:24.1]} 35... Qc7
{[%clk 0:00:07.2]} 36. Rd6 {[%clk 0:01:23.9]} 36... a5 {[%clk 0:00:04.5]} 37.
Qxe4+ {[%clk 0:01:22.7]} 1-0

[Event "Late-Titled-Tuesday-Blitz-March-26-2024"]
[Site "Chess.com"]
[Date "2024.03.26"]
[Round "10"]
[White "IsaqueGoncalvesSanto"]
[Black "dasatcu90"]
[Result "1-0"]
[WhiteElo "1919"]
[BlackElo "2207"]
[TimeControl "180+1"]
[EndTime "15:53:24 PDT"]
[Termination "IsaqueGoncalvesSanto won by checkmate"]

1. d4 {[%clk 0:02:57.3]} 1... Nf6 {[%clk 0:02:59.2]} 2. c4 {[%clk 0:02:57]} 2...
e6 {[%clk 0:02:59.7]} 3. Nc3 {[%clk 0:02:57]} 3... Bb4 {[%clk 0:02:59.4]} 4. e3
{[%clk 0:02:57.1]} 4... O-O {[%clk 0:02:59]} 5. Bd3 {[%clk 0:02:57.1]} 5... d5
{[%clk 0:02:58.9]} 6. Ne2 {[%clk 0:02:56.2]} 6... c5 {[%clk 0:02:58.5]} 7. cxd5
{[%clk 0:02:56.1]} 7... exd5 {[%clk 0:02:58.3]} 8. a3 {[%clk 0:02:56]} 8...
Bxc3+ {[%clk 0:02:53.2]} 9. bxc3 {[%clk 0:02:55.8]} 9... c4 {[%clk 0:02:53.1]}
10. Bb1 {[%clk 0:02:55.1]} 10... Nc6 {[%clk 0:02:48.7]} 11. O-O {[%clk
0:02:53.7]} 11... Na5 {[%clk 0:02:45.3]} 12. Bc2 {[%clk 0:02:40.5]} 12... Bd7
{[%clk 0:02:29.4]} 13. Rb1 {[%clk 0:02:33.9]} 13... b5 {[%clk 0:02:27.2]} 14.
Ng3 {[%clk 0:02:27.6]} 14... Re8 {[%clk 0:02:24.1]} 15. Re1 {[%clk 0:02:19.4]}
15... a6 {[%clk 0:02:12.9]} 16. f3 {[%clk 0:02:12.3]} 16... Nb7 {[%clk 0:01:47]}
17. e4 {[%clk 0:02:08.5]} 17... Be6 {[%clk 0:01:46.5]} 18. e5 {[%clk 0:02:06.4]}
18... Nd7 {[%clk 0:01:46.2]} 19. f4 {[%clk 0:02:03.2]} 19... Nf8 {[%clk
0:01:41.2]} 20. f5 {[%clk 0:02:02.5]} 20... Bd7 {[%clk 0:01:41.8]} 21. Qg4
{[%clk 0:01:35.6]} 21... f6 {[%clk 0:01:41.3]} 22. e6 {[%clk 0:01:32.9]} 22...
Bc6 {[%clk 0:01:38.7]} 23. Nh5 {[%clk 0:01:27.5]} 23... Qe7 {[%clk 0:01:33.2]}
24. Nxf6+ {[%clk 0:01:09]} 24... Qxf6 {[%clk 0:01:29.2]} 25. Bg5 {[%clk
0:01:08.7]} 25... Qxg5 {[%clk 0:00:14.6]} 26. Qxg5 {[%clk 0:01:07.6]} 26... Nd6
{[%clk 0:00:09.1]} 27. f6 {[%clk 0:01:01.1]} 27... Nxe6 {[%clk 0:00:04.4]} 28.
Rxe6 {[%clk 0:00:57.5]} 28... Nf7 {[%clk 0:00:04.8]} 29. Qxg7# {[%clk
0:00:55.8]} 1-0